fUSD/lending_fUSD_20240210
["ID","MTS","AMOUNT","RATE_DAILY","PERIOD"]
[313688944,1707587188626,-849.0,0.0003863,30]
[313688945,1707587188655,-1049.96,0.0003863,30]
[313688946,1707587188684,-551.19,0.0003863,30]
[313688947,1707587188713,-500.0,0.0003863,30]
[313688948,1707587188742,-1051.07,0.0003863,30]
[313688949,1707587188769,-529.49,0.0003863,30]
[313688950,1707587188944,-500.0,0.0003863,30]
[313688951,1707587188979,-969.21,0.0003863,30]
[313688952,1707587189011,-2142.16,0.0003863,30]
[313688953,1707587189040,-651.01,0.0003863,30]
[313688954,1707587189067,-500.0,0.0003863,30]
[313688955,1707587189095,-962.3,0.0003863,30]
[313688956,1707587189123,-1257.96,0.0003863,30]
[313688957,1707587189151,-847.82,0.0003863,30]
[313688958,1707587189181,-500.0,0.0003863,30]
[313688959,1707587189208,-500.0,0.0003863,30]
[313688960,1707587189238,-500.0,0.0003863,30]
[313688961,1707587189268,-500.0,0.0003863,30]
[313688962,1707587189299,-500.0,0.0003863,30]
[313688963,1707587189330,-500.0,0.0003863,30]
[313688964,1707587189361,-500.0,0.0003863,30]
[313688965,1707587189390,-500.0,0.0003863,30]
[313688966,1707587189419,-500.0,0.0003863,30]
[313688967,1707587189447,-500.0,0.0003863,30]
[313688968,1707587189475,-500.0,0.0003863,30]
[313688969,1707587189503,-587.75,0.0003863,30]
[313688970,1707587189534,-1504.28,0.0003863,30]
[313688971,1707587189564,-500.0,0.0003863,30]
[313688972,1707587189595,-773.57,0.0003863,30]
[313688973,1707587189621,-500.0,0.0003863,30]
[313688974,1707587189652,-1079.05,0.0003863,30]
[313688975,1707587189682,-500.0,0.0003863,30]
[313688976,1707587189712,-1348.64,0.0003863,30]
[313688977,1707587189742,-618.42,0.0003863,30]
[313688978,1707587189772,-872.64,0.0003863,30]
[313688979,1707587189802,-500.0,0.0003863,30]
[313688980,1707587189831,-1075.53,0.0003863,30]
[313688981,1707587189862,-3976.56,0.0003863,30]
[313688982,1707587189892,-720.38,0.0003863,30]
[313688983,1707587189921,-500.0,0.0003863,30]
[313688984,1707587189950,-500.0,0.0003863,30]
[313688985,1707587189978,-1396.29,0.0003863,30]
[313688986,1707587190007,-500.0,0.0003863,30]
[313688987,1707587190036,-500.0,0.0003863,30]
[313688988,1707587190066,-1241.2,0.0003863,30]
[313688989,1707587190093,-500.0,0.0003863,30]
[313688990,1707587190120,-500.0,0.0003863,30]
[313688991,1707587190147,-500.0,0.0003863,30]
[313688992,1707587190174,-766.59,0.0003863,30]
[313688993,1707587190200,-878.46,0.0003863,30]
[313688994,1707587190227,-500.0,0.0003863,30]
[313688995,1707587190255,-695.42,0.0003863,30]
[313688996,1707587190282,-500.0,0.0003863,30]
[313688997,1707587190311,-569.84,0.0003863,30]
[313688998,1707587190340,-4903.15,0.0003863,30]
[313688999,1707587190369,-500.0,0.0003863,30]
[313689000,1707587190400,-500.0,0.0003863,30]
[313689001,1707587190429,-514.73,0.0003863,30]
[313689002,1707587190460,-2462.27,0.0003863,30]
[313689003,1707587190490,-3083.4,0.0003863,30]
[313689004,1707587190519,-500.0,0.0003863,30]
[313689005,1707587190548,-500.0,0.0003863,30]
[313689006,1707587190578,-855.61,0.0003863,30]
[313689007,1707587190610,-500.0,0.0003863,30]
[313689008,1707587190640,-527.2,0.0003863,30]
[313689009,1707587190671,-500.0,0.0003863,30]
[313689010,1707587190700,-593.48,0.0003863,30]
[313689011,1707587190730,-500.0,0.0003863,30]
[313689012,1707587190759,-500.0,0.0003863,30]
[313689013,1707587190789,-500.0,0.0003863,30]
[313689014,1707587190818,-500.0,0.0003863,30]
[313689015,1707587190848,-500.0,0.0003863,30]
[313689016,1707587190877,-500.0,0.0003863,30]
[313689017,1707587190907,-500.0,0.0003863,30]
[313689018,1707587190936,-2292.11,0.0003863,30]
[313689019,1707587190965,-500.0,0.0003863,30]
[313689020,1707587190993,-500.0,0.0003863,30]
[313689021,1707587191021,-500.0,0.0003863,30]
[313689022,1707587191050,-500.0,0.0003863,30]
[313689023,1707587191076,-500.0,0.0003863,30]
[313689024,1707587191106,-558.21,0.0003863,30]
[313689025,1707587191136,-537.38,0.0003863,30]
[313689026,1707587191166,-500.0,0.0003863,30]
[313689027,1707587191193,-500.0,0.0003863,30]
[313689028,1707587191221,-500.0,0.0003863,30]
[313689029,1707587191247,-500.0,0.0003863,30]
[313689030,1707587191277,-2058.09,0.0003863,30]
[313689031,1707587191309,-940.17,0.0003863,30]
[313689032,1707587191481,-500.0,0.0003863,30]
[313689033,1707587191513,-500.0,0.0003863,30]
[313689034,1707587191543,-500.0,0.0003863,30]
[313689035,1707587191572,-585.68785682,0.0003863,30]
[313689036,1707587191603,-500.0,0.0003863,30]
[313689037,1707587191633,-500.0,0.0003863,30]
[313689038,1707587191664,-500.0,0.0003863,30]
[313689039,1707587191694,-500.0,0.0003863,30]
[313689040,1707587191722,-1653.34,0.0003863,30]
[313689041,1707587191749,-500.0,0.0003863,30]
[313689042,1707587191778,-533.26,0.0003863,30]
[313689043,1707587191809,-500.0,0.0003863,30]
[313689044,1707587191836,-500.0,0.0003863,30]
[313689045,1707587191863,-500.0,0.0003863,30]
[313689046,1707587191897,-500.0,0.0003863,30]
[313689047,1707587191930,-507.56,0.0003863,30]
[313689048,1707587191960,-500.0,0.0003863,30]
[313689049,1707587191993,-845.59,0.0003863,30]
[313689050,1707587192019,-500.0,0.0003863,30]
[313689051,1707587192050,-500.0,0.0003863,30]
[313689052,1707587192080,-653.17,0.0003863,30]
[313689053,1707587192110,-500.0,0.0003863,30]
[313689054,1707587192137,-500.0,0.0003863,30]
[313689055,1707587192165,-500.0,0.0003863,30]
[313689056,1707587192192,-1566.47,0.0003863,30]
[313689057,1707587192221,-500.0,0.0003863,30]
[313689058,1707587192249,-5199.99999984,0.00038684,30]
[313689059,1707587192276,-1103.44947007,0.00038799,30]
[313689060,1707587192306,-10000.0,0.000388,33]
[313689061,1707587192341,-500.0,0.00038904,30]
[313689062,1707587192368,-500.0,0.00038904,30]
[313689063,1707587192399,-500.0,0.00038904,30]
[313689064,1707587192425,-500.0,0.00038904,30]
[313689065,1707587192453,-500.0,0.00038904,30]
[313689066,1707587192483,-500.0,0.00038904,30]
[313689067,1707587192512,-500.0,0.00038904,30]
[313689068,1707587192551,-500.0,0.00038904,30]
[313689069,1707587192583,-500.0,0.00038904,30]
[313689070,1707587192617,-504.8,0.00038904,30]
[313689071,1707587192644,-207.85065267,0.00038904,30]
[313689072,1707587192673,-652.52,0.00038904,30]
[313689073,1707587192705,-500.0,0.00038904,30]
[313689074,1707587192736,-500.0,0.00038904,30]
[313689075,1707587192763,-500.0,0.00038904,30]
[313689076,1707587192794,-561.48,0.00038904,30]
[313689077,1707587192823,-1033.9,0.00038904,30]
[313689078,1707587192852,-500.0,0.00038904,30]
[313689079,1707587192879,-500.0,0.00038904,30]
[313689080,1707587192909,-518.72,0.00038904,30]
[313689081,1707587192937,-500.0,0.00038904,30]
[313689082,1707587192965,-587.82,0.00038904,30]
[313689083,1707587192996,-861.1,0.00038904,30]
[313689084,1707587193026,-500.0,0.00038904,30]
[313689085,1707587193055,-500.0,0.00038904,30]
[313689086,1707587193083,-500.0,0.00038904,30]
[313689087,1707587193110,-843.13,0.00038904,30]
[313689088,1707587193138,-500.0,0.00038904,30]
[313689089,1707587193168,-539.79,0.00038904,30]
[313689090,1707587193196,-500.0,0.00038904,30]
[313689091,1707587193225,-500.0,0.00038904,30]
[313689092,1707587193251,-500.0,0.00038904,30]
[313689093,1707587193284,-653.82,0.00038904,30]
[313689094,1707587193311,-741.12,0.00038904,30]
[313689095,1707587193343,-540.63,0.00038904,30]
[313689096,1707587193370,-500.0,0.00038904,30]
[313689097,1707587193398,-529.48563252,0.00038904,30]
[313689098,1707587193428,-500.0,0.00038904,30]
[313689099,1707587193458,-500.0,0.00038904,30]
[313689100,1707587193487,-500.0,0.00038904,30]
[313689101,1707587193518,-500.0,0.00038904,30]
[313689102,1707587193545,-500.0,0.00038904,30]
[313689103,1707587193576,-500.0,0.00038904,30]
[313689104,1707587193610,-500.0,0.00038904,30]
[313689105,1707587193642,-500.0,0.00038904,30]
[313689106,1707587193674,-641.35,0.00038904,30]
[313689107,1707587193702,-594.09,0.00038904,30]
[313689108,1707587193736,-500.0,0.00038904,30]
[313689109,1707587193766,-500.0,0.00038904,30]
[313689110,1707587193795,-500.0,0.00038904,30]
[313689111,1707587193944,-500.0,0.00038904,30]
[313689112,1707587193998,-500.0,0.00038904,30]
[313689113,1707587194024,-500.0,0.00038904,30]
[313689114,1707587194052,-500.0,0.00038904,30]
[313689115,1707587194083,-500.0,0.00038904,30]
[313689116,1707587194111,-500.0,0.00038904,30]
[313689117,1707587194139,-531.35,0.00038904,30]
[313689118,1707587194165,-500.0,0.00038904,30]
[313689119,1707587194192,-500.0,0.00038904,30]
[313689120,1707587194220,-500.0,0.00038904,30]
[313689121,1707587194250,-500.0,0.00038904,30]
[313689122,1707587194278,-500.0,0.00038904,30]
[313689123,1707587194307,-500.0,0.00038904,30]
[313689124,1707587194335,-500.0,0.00038904,30]
[313689125,1707587194363,-670.38,0.00038904,30]
[313689126,1707587194389,-500.0,0.00038904,30]
[313689127,1707587194416,-500.0,0.00038904,30]
[313689128,1707587194444,-501.65,0.00038904,30]
[313689129,1707587194471,-816.25,0.00038904,30]
[313689130,1707587194496,-500.0,0.00038904,30]
[313689131,1707587194523,-530.59,0.00038904,30]
[313689132,1707587194549,-500.0,0.00038904,30]
[313689133,1707587194576,-500.0,0.00038904,30]
[313689134,1707587194607,-569.97,0.00038904,30]
[313689135,1707587194633,-500.0,0.00038904,30]
[313689136,1707587194659,-512.75,0.00038904,30]
[313689137,1707587194686,-500.0,0.00038904,30]
[313689138,1707587194712,-693.12,0.00038904,30]
[313689139,1707587194740,-500.0,0.00038904,30]
[313689140,1707587194767,-500.0,0.00038904,30]
[313689141,1707587194795,-638.48,0.00038904,30]
[313689142,1707587194822,-500.0,0.00038904,30]
[313689143,1707587194851,-500.0,0.00038904,30]
[313689144,1707587194878,-635.23988199,0.00038904,30]
[313689145,1707587194941,-500.0,0.00038904,30]
[313689146,1707587194970,-1084.73,0.00038904,30]
[313689147,1707587194999,-500.0,0.00038904,30]
[313689148,1707587195026,-500.0,0.00038904,30]
[313689149,1707587195051,-500.0,0.00038904,30]
[313689150,1707587195078,-538.43,0.00038904,30]
[313689151,1707587195104,-666.78,0.00038904,30]
[313689152,1707587195132,-542.98,0.00038904,30]
[313689153,1707587195159,-500.0,0.00038904,30]
[313689154,1707587195185,-500.0,0.00038904,30]
[313689155,1707587195212,-538.79,0.00038904,30]
[313689156,1707587195239,-500.0,0.00038904,30]
[313689157,1707587195266,-399.29497133,0.00038904,30]
[313689158,1707587195292,-227.59726604,0.00038904,30]
[313689159,1707587195321,-500.0,0.00038904,30]
[313689160,1707587195348,-609.14,0.00038904,30]
[313689161,1707587195374,-500.0,0.00038904,30]
[313689162,1707587195399,-500.0,0.00038904,30]
[313689163,1707587195427,-500.0,0.00038904,30]
[313689164,1707587195453,-527.94058831,0.00038904,30]
[313689165,1707587195479,-500.0,0.00038904,30]
[313689166,1707587195505,-500.0,0.00038904,30]
[313689167,1707587195531,-500.0,0.00038904,30]
[313689168,1707587195556,-642.23790237,0.00038904,30]
[313689169,1707587195581,-500.0,0.00038904,30]
[313689170,1707587195609,-500.0,0.00038904,30]
[313689171,1707587195634,-500.0,0.00038904,30]
[313689172,1707587195658,-700.22,0.00038904,30]
[313689173,1707587195689,-650.62,0.00038904,30]
[313689174,1707587195714,-500.62,0.00038904,30]
[313689175,1707587195740,-500.0,0.00038904,30]
[313689176,1707587195766,-500.0,0.00038904,30]
[313689177,1707587195793,-500.0,0.00038904,30]
[313689178,1707587195818,-500.0,0.00038904,30]
[313689179,1707587195844,-500.0,0.00038904,30]
[313689180,1707587195870,-743.57,0.00038904,30]
[313689181,1707587195896,-696.24,0.00038904,30]
[313689182,1707587195921,-500.0,0.00038904,30]
[313689183,1707587195946,-583.97,0.00038904,30]
[313689184,1707587195972,-500.0,0.00038904,30]
[313689185,1707587195997,-500.0,0.00038904,30]
[313689186,1707587196023,-794.2,0.00038904,30]
[313689187,1707587196048,-500.0,0.00038904,30]
[313689188,1707587196246,-629.6848109,0.00038904,30]
[313689189,1707587196278,-500.0,0.00038904,30]
[313689190,1707587196303,-267.16,0.00038904,30]
[313689191,1707587196328,-500.0,0.00038904,30]
[313689192,1707587196355,-500.0,0.00038904,30]
[313689193,1707587196379,-500.0,0.00038904,30]
[313689194,1707587196405,-500.0,0.00038904,30]
[313689195,1707587196429,-500.0,0.00038904,30]
[313689196,1707587196454,-150.0,0.00038904,30]
[313689197,1707587196479,-1137.16,0.00038904,30]
[313689198,1707587196504,-500.0,0.00038904,30]
[313689199,1707587196529,-347.68,0.00038904,30]
[313689200,1707587196554,-500.0,0.00038904,30]
[313689201,1707587196579,-500.0,0.00038904,30]
[313689202,1707587196606,-500.0,0.00038904,30]
[313689203,1707587196631,-1314.29,0.00038904,30]
[313689204,1707587196657,-1066.72,0.00038904,30]
[313689205,1707587196681,-500.0,0.00038904,30]
[313689206,1707587196711,-500.0,0.00038904,30]
[313689207,1707587196736,-500.0,0.00038904,30]
[313689208,1707587196763,-451.54,0.00038904,30]
[313689209,1707587196788,-500.0,0.00038904,30]
[313689210,1707587196812,-500.0,0.00038904,30]
[313689211,1707587196836,-500.0,0.00038904,30]
[313689212,1707587196861,-533.56,0.00038904,30]
[313689213,1707587196886,-500.0,0.00038904,30]
[313689214,1707587196913,-513.58772382,0.00038904,30]
[313689215,1707587196939,-346.07623167,0.00038904,30]
[313689216,1707587196964,-500.0,0.00038904,30]
[313689217,1707587196989,-500.0,0.00038904,30]
[313689218,1707587197015,-500.0,0.00038904,30]
[313689219,1707587197041,-500.0,0.00038904,30]
[313689220,1707587197066,-500.0,0.00038904,30]
[313689221,1707587197091,-500.0,0.00038904,30]
[313689222,1707587197118,-500.0,0.00038904,30]
[313689223,1707587197144,-678.24,0.00038904,30]
[313689224,1707587197170,-500.0,0.00038904,30]
[313689225,1707587197206,-500.0,0.00038904,30]
[313689226,1707587197258,-500.0,0.00038904,30]
[313689227,1707587197309,-500.0,0.00038904,30]
[313689228,1707587197357,-500.0,0.00038904,30]
[313689229,1707587197406,-500.0,0.00038904,30]
[313689230,1707587197448,-500.0,0.00038904,30]
[313689231,1707587197490,-500.0,0.00038904,30]
[313689232,1707587197532,-213.55,0.00038904,30]
[313689233,1707587197573,-513.21,0.00038904,30]
[313689234,1707587197615,-500.0,0.00038904,30]
[313689235,1707587197655,-500.0,0.00038904,30]
[313689236,1707587197694,-500.0,0.00038904,30]
[313689237,1707587197733,-500.0,0.00038904,30]
[313689238,1707587197771,-500.0,0.00038904,30]
[313689239,1707587197809,-500.0,0.00038904,30]
[313689240,1707587197847,-1052.2,0.00038904,30]
[313689241,1707587197886,-500.0,0.00038904,30]
[313689242,1707587197933,-500.0,0.00038904,30]
[313689243,1707587197974,-506.34,0.00038904,30]
[313689244,1707587198014,-500.0,0.00038904,30]
[313689245,1707587198054,-513.66631873,0.00038904,30]
[313689246,1707587198092,-500.0,0.00038904,30]
[313689247,1707587198132,-611.76,0.00038904,30]
[313689248,1707587198171,-500.0,0.00038904,30]
[313689249,1707587198209,-707.55,0.00038904,30]
[313689250,1707587198248,-836.27,0.00038904,30]
[313689251,1707587198287,-500.0,0.00038904,30]
[313689252,1707587198325,-543.5,0.00038904,30]
[313689253,1707587198364,-500.0,0.00038904,30]
[313689254,1707587198404,-500.0,0.00038904,30]
[313689255,1707587198442,-500.0,0.00038904,30]
[313689256,1707587198482,-612.78480471,0.00038904,30]
[313689257,1707587198520,-500.0,0.00038904,30]
[313689258,1707587198557,-592.9,0.00038904,30]
[313689259,1707587198596,-500.0,0.00038904,30]
[313689260,1707587198633,-1295.97,0.00038904,30]
[313689261,1707587198669,-587.43,0.00038904,30]
[313689262,1707587198893,-500.0,0.00038904,30]
[313689263,1707587198929,-925.29,0.00038904,30]
[313689264,1707587198954,-500.0,0.00038904,30]
[313689265,1707587198978,-500.0,0.00038904,30]
[313689266,1707587199002,-394.44,0.00038904,30]
[313689267,1707587199027,-500.0,0.00038904,30]
[313689268,1707587199051,-500.0,0.00038904,30]
[313689269,1707587199075,-653.92,0.00038904,30]
[313689270,1707587199101,-543.08,0.00038904,30]
[313689271,1707587199127,-500.0,0.00038904,30]
[313689272,1707587199152,-183.37817431,0.00038904,30]
[313689273,1707587199176,-500.0,0.00038904,30]
[313689274,1707587199203,-2044.92,0.00038904,30]
[313689275,1707587199230,-500.0,0.00038904,30]
[313689276,1707587199255,-500.0,0.00038904,30]
[313689277,1707587199280,-500.0,0.00038904,30]
[313689278,1707587199306,-500.0,0.00038904,30]
[313689279,1707587199331,-616.57,0.00038904,30]
[313689280,1707587199359,-722.45,0.00038904,30]
[313689281,1707587199385,-500.0,0.00038904,30]
[313689282,1707587199411,-643.45,0.00038904,30]
[313689283,1707587199437,-656.66,0.00038904,30]
[313689284,1707587199461,-594.35,0.00038904,30]
[313689285,1707587199490,-500.0,0.00038904,30]
[313689286,1707587199514,-516.39018418,0.00038904,30]
[313689287,1707587199539,-1910.71,0.00038904,30]
[313689288,1707587199565,-500.0,0.00038904,30]
[313689289,1707587199592,-500.0,0.00038904,30]
[313689290,1707587199616,-500.0,0.00038904,30]
[313689291,1707587199642,-500.0,0.00038904,30]
[313689292,1707587199667,-853.13,0.00038904,30]
[313689293,1707587199691,-1438.68,0.00038904,30]
[313689294,1707587199714,-500.0,0.00038904,30]
[313689295,1707587199739,-500.0,0.00038904,30]
[313689296,1707587199769,-500.0,0.00038904,30]
[313689297,1707587199794,-500.0,0.00038904,30]
[313689298,1707587199819,-500.0,0.00038904,30]
[313689299,1707587199843,-500.0,0.00038904,30]
[313689300,1707587199867,-636.08,0.00038904,30]
[313689301,1707587199891,-500.0,0.00038904,30]
[313689302,1707587199915,-500.0,0.00038904,30]
[313689303,1707587199939,-500.0,0.00038904,30]
[313689304,1707587199966,-506.82,0.00038904,30]
[313689305,1707587199991,-500.0,0.00038904,30]
[313689306,1707587200016,-500.0,0.00038904,30]
[313689307,1707587200041,-500.0,0.00038904,30]
[313689308,1707587200067,-500.0,0.00038904,30]
[313689309,1707587200092,-500.0,0.00038904,30]
[313689310,1707587200116,-500.0,0.00038904,30]
[313689311,1707587200141,-500.0,0.00038904,30]
[313689312,1707587200166,-500.0,0.00038904,30]
[313689313,1707587200191,-500.0,0.00038904,30]
[313689314,1707587200216,-1572.11,0.00038904,30]
[313689315,1707587200242,-500.0,0.00038904,30]
[313689316,1707587200267,-1421.05,0.00038904,30]
[313689317,1707587200291,-500.0,0.00038904,30]
[313689318,1707587200316,-500.0,0.00038904,30]
[313689319,1707587200340,-500.0,0.00038904,30]
[313689320,1707587200365,-500.0,0.00038904,30]
[313689321,1707587200390,-500.0,0.00038904,30]
[313689322,1707587200415,-500.0,0.00038904,30]
[313689323,1707587200439,-566.36,0.00038904,30]
[313689324,1707587200464,-1214.77,0.00038904,30]
[313689325,1707587200490,-1096.05,0.00038904,30]
[313689326,1707587200513,-287.77834069,0.00038904,30]
[313689327,1707587200538,-855.36,0.00038904,30]
[313689328,1707587200564,-500.0,0.00038904,30]
[313689329,1707587200591,-693.6,0.00038904,30]
[313689330,1707587200617,-626.03,0.00038904,30]
[313689331,1707587200642,-500.0,0.00038904,30]
[313689332,1707587200666,-500.0,0.00038904,30]
[313689333,1707587200692,-1343.72,0.00038904,30]
[313689334,1707587200716,-500.0,0.00038904,30]
[313689335,1707587200741,-3451.1,0.00038904,30]
[313689336,1707587200767,-500.0,0.00038904,30]
[313689337,1707587200793,-500.0,0.00038904,30]
[313689338,1707587200817,-500.0,0.00038904,30]
[313689339,1707587200841,-630.33,0.00038904,30]
[313689340,1707587200867,-500.0,0.00038904,30]
[313689341,1707587200892,-1359.44,0.00038904,30]
[313689342,1707587200919,-617.86,0.00038904,30]
[313689343,1707587200946,-746.23,0.00038904,30]
[313689344,1707587200971,-500.0,0.00038904,30]
[313689345,1707587200996,-500.0,0.00038904,30]
[313689346,1707587201172,-500.0,0.00038904,30]
[313689347,1707587201197,-712.75,0.00038904,30]
[313689348,1707587201223,-849.56,0.00038904,30]
[313689349,1707587201247,-495.65217316,0.00038904,30]
[313689350,1707587201278,-1189.34,0.00038904,30]
[313689351,1707587201302,-515.6,0.00038904,30]
[313689352,1707587201327,-500.0,0.00038904,30]
[313689353,1707587201355,-500.0,0.00038904,30]
[313689354,1707587201380,-500.0,0.00038904,30]
[313689355,1707587201405,-731.92,0.00038904,30]
[313689356,1707587201430,-1114.3,0.00038904,30]
[313689357,1707587201455,-500.0,0.00038904,30]
[313689358,1707587201479,-500.0,0.00038904,30]
[313689359,1707587201503,-562.1,0.00038904,30]
[313689360,1707587201527,-500.0,0.00038904,30]
[313689361,1707587201552,-500.0,0.00038904,30]
[313689362,1707587201578,-1121.74,0.00038904,30]
[313689363,1707587201613,-525.58,0.00038904,30]
[313689364,1707587201644,-977.73,0.00038904,30]
[313689365,1707587201669,-500.0,0.00038904,30]
[313689366,1707587201698,-561.13,0.00038904,30]
[313689367,1707587201725,-947.65,0.00038904,30]
[313689368,1707587201750,-1026.02,0.00038904,30]
[313689369,1707587201775,-500.0,0.00038904,30]
[313689370,1707587201803,-500.0,0.00038904,30]
[313689371,1707587201828,-1242.56,0.00038904,30]
[313689372,1707587201852,-493.29987309,0.00038904,30]
[313689373,1707587201876,-645.83,0.00038904,30]
[313689374,1707587201901,-1691.5,0.00038904,30]
[313689375,1707587201925,-500.0,0.00038904,30]
[313689376,1707587201949,-500.0,0.00038904,30]
[313689377,1707587201974,-500.0,0.00038904,30]
[313689378,1707587201998,-500.0,0.00038904,30]
[313689379,1707587202023,-500.0,0.00038904,30]
[313689380,1707587202047,-873.15,0.00038904,30]
[313689381,1707587202071,-500.0,0.00038904,30]
[313689382,1707587202097,-708.27,0.00038904,30]
[313689383,1707587202121,-377.95107867,0.00038904,30]
[313689384,1707587202146,-529.55,0.00038904,30]
[313689385,1707587202171,-779.81,0.00038904,30]
[313689386,1707587202196,-1056.2,0.00038904,30]
[313689387,1707587202221,-500.0,0.00038904,30]
[313689388,1707587202247,-241.29251784,0.00038904,30]
[313689389,1707587202273,-500.0,0.00038904,30]
[313689390,1707587202299,-519.82,0.00038904,30]
[313689391,1707587202324,-970.19,0.00038904,30]
[313689392,1707587202349,-678.81,0.00038904,30]
[313689393,1707587202373,-332.93118866,0.00038904,30]
[313689394,1707587202398,-500.0,0.00038904,30]
[313689395,1707587202422,-705.9,0.00038904,30]
[313689396,1707587202446,-1052.93,0.00038904,30]
[313689397,1707587202471,-500.0,0.00038904,30]
[313689398,1707587202496,-500.0,0.00038904,30]
[313689399,1707587202520,-500.0,0.00038904,30]
[313689400,1707587202544,-287.89,0.00038904,30]
[313689401,1707587202569,-684.62,0.00038904,30]
[313689402,1707587202595,-711.92,0.00038904,30]
[313689403,1707587202620,-1004.11,0.00038904,30]
[313689404,1707587202644,-500.0,0.00038904,30]
[313689405,1707587202668,-500.0,0.00038904,30]
[313689406,1707587202694,-667.08,0.00038904,30]
[313689407,1707587202719,-754.28,0.00038904,30]
[313689408,1707587202743,-500.0,0.00038904,30]
[313689409,1707587202767,-500.0,0.00038904,30]
[313689410,1707587202792,-500.0,0.00038904,30]
[313689411,1707587202817,-500.0,0.00038904,30]
[313689412,1707587202842,-500.0,0.00038904,30]
[313689413,1707587202866,-725.08,0.00038904,30]
[313689414,1707587202890,-500.0,0.00038904,30]
[313689415,1707587202914,-509.63,0.00038904,30]
[313689416,1707587202939,-1382.71,0.00038904,30]
[313689417,1707587202964,-500.0,0.00038904,30]
[313689418,1707587202989,-1447.85,0.00038904,30]
[313689419,1707587203014,-1223.13,0.00038904,30]
[313689420,1707587203039,-2091.65,0.00038904,30]
[313689421,1707587203064,-500.0,0.00038904,30]
[313689422,1707587203088,-969.91,0.00038904,30]
[313689423,1707587203112,-611.01,0.00038904,30]
[313689424,1707587203137,-1057.09,0.00038904,30]
[313689425,1707587203163,-500.0,0.00038904,30]
[313689426,1707587203189,-672.89,0.00038904,30]
[313689427,1707587203214,-500.0,0.00038904,30]
[313689428,1707587203239,-250.0,0.00038904,30]
[313689429,1707587203263,-500.0,0.00038904,30]
[313689430,1707587203288,-500.0,0.00038904,30]
[313689431,1707587203313,-1517.8,0.00038904,30]
[313689432,1707587203338,-1316.97,0.00038904,30]
[313689433,1707587203363,-500.0,0.00038904,30]
[313689434,1707587203388,-738.23,0.00038904,30]
[313689435,1707587203570,-500.0,0.00038904,30]
[313689436,1707587203597,-1065.11,0.00038904,30]
[313689437,1707587203621,-1631.07,0.00038904,30]
[313689438,1707587203646,-500.0,0.00038904,30]
[313689439,1707587203671,-500.0,0.00038904,30]
[313689440,1707587203696,-500.0,0.00038904,30]
[313689441,1707587203720,-500.0,0.00038904,30]
[313689442,1707587203747,-706.87,0.00038904,30]
[313689443,1707587203774,-765.85,0.00038904,30]